bitfinex/quotes_BTCUSD_20220207
["timestamp","ask_amount","ask_price","bid_price","bid_amount"]
[1644267043734,0.31765957,44070.0,44061.0,0.02130407]
[1644267044139,0.46765957,44070.0,44061.0,0.02130407]
[1644267044334,0.26983942,44062.0,44061.0,0.02130407]
[1644267044539,0.05,44061.0,44058.0,0.02173425]
[1644267044734,0.075977,44060.0,44058.0,0.02173425]
[1644267045338,0.075977,44069.0,44058.0,0.02073425]
[1644267045584,0.05,44072.0,44059.0,0.28903707]
[1644267045781,0.07538,44070.0,44059.0,0.28903707]
[1644267045985,0.0833099,44067.0,44060.0,0.00071001]
[1644267046185,0.59211201,44061.0,44060.0,0.00071001]
[1644267046383,0.61749201,44061.0,44060.0,0.00071001]
[1644267046581,0.56749201,44061.0,44060.0,0.00071001]
[1644267046787,0.113499,44070.0,44060.0,0.00071001]
[1644267046788,0.34230071,44073.0,44060.0,0.00071001]
[1644267046982,0.05,44066.0,44059.0,0.01979462]
[1644267047183,0.32096302,44077.0,44059.0,0.01979462]
[1644267047184,0.2,44060.0,44059.0,0.01979462]
[1644267047780,0.27538,44060.0,44059.0,0.01979462]
[1644267047981,0.33888816,44060.0,44059.0,0.01979462]
[1644267048382,0.12538,44060.0,44057.0,0.00068691]
[1644267048584,0.056749,44066.0,44057.0,0.00068691]
[1644267048585,0.20719725,44065.0,44057.0,0.00068691]
[1644267048982,0.20719725,44065.0,44060.0,0.0223]
[1644267049182,0.05,44063.0,44060.0,0.0223]
[1644267049636,0.12765131,44064.0,44060.0,0.02298689]
[1644267049839,0.05,44063.0,44060.0,0.02298689]
[1644267050635,0.05,44063.0,44060.0,0.0223]
[1644267051239,0.01830001,44070.0,44059.0,0.00068689]
[1644267051441,0.01830001,44070.0,44061.0,0.323309]
[1644267051641,0.01830001,44070.0,44062.0,0.0419]
[1644267051838,0.01830001,44070.0,44063.0,0.323309]
[1644267052041,0.01830001,44070.0,44064.0,0.0419]
[1644267052239,0.01830001,44070.0,44065.0,0.323309]
[1644267052436,0.00022324,44073.0,44066.0,0.0419]
[1644267052640,0.00022324,44073.0,44067.0,0.323309]
[1644267052839,0.00022324,44073.0,44067.0,0.423309]
[1644267053081,0.0211303,44077.0,44067.0,0.523309]
[1644267053280,0.00022326,44073.0,44067.0,0.423309]
[1644267053681,0.00022326,44073.0,44067.0,0.473309]
[1644267053885,0.00022326,44073.0,44068.0,0.323309]
[1644267054087,0.44789867,44075.0,44063.0,0.08715]
[1644267054088,0.1472984,44068.0,44063.0,0.08715]
[1644267054384,0.07538,44069.0,44062.0,0.02107289]
[1644267054588,0.05,44070.0,44062.0,0.02107289]
[1644267054784,0.24944742,44066.0,44062.0,0.02107289]
[1644267055384,0.06619629,44063.0,44062.0,0.02107289]
[1644267055686,0.07538,44065.0,44062.0,0.02107289]
[1644267055884,0.24660742,44066.0,44062.0,0.02107289]
[1644267056085,0.22226992,44068.0,44062.0,0.02107289]
[1644267056486,0.0019,44071.0,44062.0,0.02107289]
[1644267056932,0.08407538,44070.0,44062.0,0.02107289]
[1644267057332,0.1472984,44068.0,44062.0,0.02107289]
[1644267057533,0.05,44063.0,44062.0,0.02107289]
[1644267057732,0.08407538,44070.0,44062.0,0.02107289]
[1644267057733,0.1972984,44066.0,44062.0,0.02107289]
[1644267057931,0.13407538,44070.0,44062.0,0.02107289]
[1644267058131,0.1972984,44068.0,44062.0,0.04337289]
[1644267058334,0.2472984,44068.0,44062.0,0.04337289]
[1644267058536,0.05,44068.0,44062.0,0.04337289]
[1644267058735,0.43228212,44069.0,44062.0,0.04337289]
[1644267059334,0.43228212,44069.0,44064.0,2.77739859]
[1644267059535,0.23927132,44069.0,44062.0,0.04337289]
[1644267060134,0.0019,44071.0,44063.0,0.34008446]
[1644267060596,0.4055986,44070.0,44063.0,0.34008446]
[1644267060797,0.1972984,44068.0,44062.0,0.0223]
[1644267060996,0.2083002,44070.0,44062.0,0.0223]
[1644267061198,0.22777888,44069.0,44062.0,0.0223]
[1644267061595,0.1972984,44068.0,44062.0,0.0223]
[1644267061798,0.22777888,44069.0,44062.0,0.0223]
[1644267062402,0.1972984,44067.0,44062.0,0.0223]
[1644267063198,0.07538,44066.0,44062.0,0.0223]
[1644267063798,0.45777888,44069.0,44062.0,0.0223]
[1644267063999,0.45777888,44069.0,44061.0,0.0223]
[1644267065034,0.23,44069.0,44061.0,0.0223]
[1644267065531,0.23,44069.0,44066.0,0.323309]
[1644267065730,0.23,44069.0,44066.0,0.373309]
[1644267065931,0.23,44069.0,44068.0,0.323309]
[1644267066329,0.23,44069.0,44068.0,0.473309]
[1644267066736,0.0019,44071.0,44070.0,0.323309]
[1644267067231,0.0019,44071.0,44070.0,0.674649]
[1644267067432,0.0019,44071.0,44070.0,0.624649]
[1644267067636,0.0019,44071.0,44070.0,0.574649]
[1644267068687,0.0019,44071.0,44070.0,0.15134]
[1644267068887,0.0019,44071.0,44070.0,0.0223]
[1644267069885,0.25889327,44071.0,44070.0,0.0223]
[1644267070086,0.33427327,44071.0,44070.0,0.0223]
[1644267070290,0.25889327,44071.0,44063.0,0.0223]
[1644267070485,0.26090231,44071.0,44063.0,0.0223]
[1644267070689,0.06593065,44066.0,44063.0,0.0223]
[1644267070886,0.1472984,44064.0,44063.0,0.0223]
[1644267071087,0.05,44069.0,44063.0,0.0223]
[1644267071286,0.1,44069.0,44063.0,0.0223]
[1644267071842,0.23570221,44067.0,44063.0,0.0223]
[1644267073440,0.23,44069.0,44061.0,0.0223]
[1644267073741,0.23,44069.0,44062.0,0.323309]
[1644267073941,0.23,44069.0,44063.0,0.323309]
[1644267074140,0.2472984,44068.0,44063.0,0.323309]
[1644267074440,0.23,44069.0,44064.0,0.29342399]
[1644267074642,0.23,44069.0,44065.0,0.323309]
[1644267074843,0.23,44069.0,44065.0,0.423309]
[1644267076481,0.23,44069.0,44066.0,0.056716]
[1644267076682,0.23,44069.0,44067.0,0.323309]
[1644267076882,0.23,44069.0,44068.0,0.323309]
[1644267077281,0.23,44069.0,44068.0,0.423309]
[1644267077883,0.23,44069.0,44068.0,0.323309]
[1644267078483,0.23,44069.0,44066.0,0.0223]
[1644267078683,0.23,44069.0,44067.0,0.323309]
[1644267078885,0.23,44069.0,44067.0,0.473309]
[1644267079087,0.00249296,44077.0,44069.0,1.4]
[1644267079340,0.00249296,44077.0,44075.0,0.34017394]
[1644267079536,0.00249296,44077.0,44076.0,1.04754043]
[1644267079735,0.01946499,44078.0,44076.0,1.12183857]
[1644267079936,0.01946499,44078.0,44077.0,0.6155198]
[1644267080135,0.01946499,44078.0,44077.0,0.6574198]
[1644267080333,0.01946499,44078.0,44077.0,0.8945398]
[1644267080536,0.01946499,44078.0,44077.0,0.57663213]
[1644267080741,0.05,44080.0,44078.0,0.323309]
[1644267080934,0.05,44080.0,44079.0,0.0419]
[1644267081536,0.23065452,44080.0,44079.0,0.0419]
[1644267081736,0.28065452,44080.0,44079.0,0.365209]
[1644267081935,0.28065452,44080.0,44079.0,0.0419]
[1644267082339,0.05,44078.0,44077.0,0.08712]
[1644267082535,0.1972984,44078.0,44076.0,0.0223]
[1644267082734,0.12538,44077.0,44076.0,0.0223]
[1644267083202,0.39748097,44077.0,44076.0,0.0223]
[1644267083705,0.39748097,44077.0,44071.0,0.0223]
[1644267084104,0.34748097,44077.0,44071.0,0.0223]
[1644267084504,0.25111923,44077.0,44071.0,0.0223]
[1644267084706,0.1,44077.0,44071.0,0.0223]
[1644267085105,0.1,44077.0,44071.0,0.01662721]
[1644267085404,0.2319,44078.0,44071.0,0.01662721]
[1644267085805,0.44740188,44078.0,44071.0,0.01662721]
[1644267086007,0.44740188,44078.0,44071.0,2.52569272]
[1644267086203,0.44740188,44078.0,44072.0,0.323309]
[1644267086605,0.2319,44078.0,44072.0,0.323309]
[1644267086844,0.2319,44078.0,44073.0,0.01662721]
[1644267087035,0.2319,44078.0,44074.0,0.323309]
[1644267087237,0.2472984,44075.0,44073.0,0.01662721]
[1644267087436,0.07538,44074.0,44073.0,0.01662721]
[1644267088437,0.2472984,44074.0,44073.0,0.01662721]
[1644267088640,0.12538,44074.0,44073.0,0.01662721]
[1644267089235,0.51953049,44074.0,44073.0,0.01662721]
[1644267089837,0.59001286,44074.0,44073.0,0.01662721]
[1644267090439,0.59001286,44074.0,44067.0,0.01662721]
[1644267090440,0.1472984,44070.0,44067.0,0.01662721]
[1644267090690,0.1,44068.0,44067.0,0.01662721]
[1644267091085,0.2472984,44068.0,44067.0,0.01662721]
[1644267091289,0.53794536,44068.0,44067.0,0.01662721]
[1644267091486,0.34064696,44068.0,44067.0,0.01662721]
[1644267091687,0.26526696,44068.0,44067.0,0.01662721]
[1644267092088,0.21526696,44068.0,44067.0,0.01662721]
[1644267093290,0.46256536,44068.0,44067.0,0.01662721]
[1644267093489,0.08153883,44066.0,44065.0,0.00068897]
[1644267094090,0.08153883,44066.0,44064.0,0.01662721]
[1644267094338,0.3417676,44066.0,44064.0,0.01662721]
[1644267094536,0.26022877,44066.0,44064.0,0.01662721]
[1644267095136,0.23,44066.0,44064.0,0.01662721]
[1644267095736,0.05,44065.0,44064.0,0.01662721]
[1644267097035,0.05,44065.0,44062.0,0.01731726]
[1644267097636,0.05,44065.0,44062.0,0.01662721]
[1644267099188,0.18,44066.0,44062.0,0.01662721]
[1644267099384,0.18,44066.0,44063.0,0.323309]
[1644267099786,0.18,44066.0,44064.0,0.05]
[1644267100184,0.18,44066.0,44065.0,0.33993621]
[1644267100386,1.4,44065.0,44062.0,0.00068998]
[1644267100590,1.4,44065.0,44055.0,0.02028792]
[1644267100591,0.1972984,44063.0,44055.0,0.02028792]
[1644267100791,0.1472984,44056.0,44055.0,0.02028792]
[1644267100987,0.30839823,44056.0,44055.0,0.02028792]
[1644267101189,0.30839823,44056.0,44055.0,0.04129828]
[1644267101388,0.78926784,44056.0,44055.0,0.02101036]
[1644267101862,0.47102441,44056.0,44055.0,0.02101036]
[1644267102751,0.05,44055.0,44046.0,0.01930528]
[1644267102951,0.05,44047.0,44046.0,0.01930528]
[1644267103153,0.29439053,44047.0,44046.0,0.01930528]
[1644267103860,0.69553714,44047.0,44046.0,0.01930528]
[1644267104755,0.05,44045.0,44042.0,0.001]
[1644267104959,0.05,44045.0,44034.0,0.0011]
[1644267104960,0.075395,44041.0,44034.0,0.0011]
[1644267105258,0.075395,44041.0,44038.0,0.00294608]
[1644267105259,0.423296,44039.0,44038.0,0.00294608]
[1644267105453,1.4,44038.0,44034.0,0.0011]
[1644267105688,0.117295,44037.0,44034.0,0.0011]
[1644267105888,0.60451774,44036.0,44034.0,0.0011]
[1644267106087,0.365196,44035.0,44034.0,0.0011]
[1644267106287,0.465196,44035.0,44034.0,0.0011]
[1644267106993,0.463696,44035.0,44034.0,0.0011]
[1644267107387,0.76412703,44035.0,44034.0,0.0011]
[1644267107986,0.463696,44035.0,44034.0,0.0011]
[1644267108286,0.75576748,44035.0,44034.0,0.0011]
[1644267109642,0.463696,44035.0,44034.0,0.0011]
[1644267110239,0.363696,44035.0,44034.0,0.0011]
[1644267113987,0.463696,44035.0,44034.0,0.0011]
[1644267114188,0.363696,44035.0,44034.0,0.0011]
[1644267114389,0.463696,44035.0,44034.0,0.0011]
[1644267114589,0.363696,44035.0,44034.0,0.0011]
[1644267114793,0.36229924,44035.0,44034.0,0.0001]
[1644267115787,0.42615573,44035.0,44034.0,0.0001]
[1644267115989,0.42615573,44035.0,44033.0,0.0023]
[1644267116188,0.47615573,44035.0,44033.0,0.0023]
[1644267116393,1.4,44034.0,44028.0,0.003]
[1644267116590,0.370371,44031.0,44028.0,0.003]
[1644267117037,0.370371,44031.0,44029.0,0.0032]
[1644267118037,0.427166,44031.0,44029.0,0.0022]
[1644267118242,0.327166,44031.0,44029.0,0.0022]
[1644267118842,0.075395,44030.0,44029.0,0.0012]
[1644267119244,0.125395,44030.0,44029.0,0.0012]
[1644267119441,0.42654128,44030.0,44029.0,0.0002]
[1644267119642,0.37654128,44030.0,44029.0,0.0002]
[1644267120241,1.4,44028.0,44021.0,0.00280095]
[1644267120451,0.15,44025.0,44013.0,0.69028753]
[1644267120710,0.05,44019.0,44002.0,0.05]
[1644267120906,0.06578305,44005.0,44003.0,0.099]
[1644267121105,0.38615405,44005.0,44003.0,0.099]
[1644267121307,0.45411633,44004.0,44003.0,0.099]
[1644267121504,0.52951133,44004.0,44003.0,0.098]
[1644267121906,0.29873972,44004.0,44003.0,0.098]
[1644267122609,0.075395,44004.0,44003.0,0.098]
[1644267122804,0.1472984,44006.0,44003.0,0.098]
[1644267123004,0.323477,44005.0,44003.0,0.098]
[1644267123406,0.0455,44013.0,44003.0,0.098]
[1644267123610,0.323477,44013.0,44003.0,0.148]
[1644267123809,0.34270864,44014.0,44003.0,0.148]
[1644267124006,0.323477,44013.0,44003.0,0.148]
[1644267124207,0.323477,44013.0,44003.0,0.198]
[1644267124468,0.323477,44013.0,44006.0,0.0007363]
[1644267125260,0.323477,44013.0,44012.0,0.05]
[1644267125457,0.323477,44013.0,44008.0,0.05]
[1644267125656,0.01936102,44014.0,44008.0,0.05]
[1644267125956,0.01936102,44014.0,44007.0,0.00073629]
[1644267126157,0.1472984,44013.0,44007.0,0.00073629]
[1644267126357,0.08007988,44010.0,44007.0,0.00073629]
[1644267126558,0.1472984,44013.0,44005.0,0.05]
[1644267126758,0.1472984,44013.0,44006.0,0.0007363]
[1644267126957,0.19758746,44012.0,44006.0,0.0007363]
[1644267127158,0.19758746,44012.0,44006.0,0.21145321]
[1644267127558,0.08637881,44010.0,44006.0,0.0007363]
[1644267127765,0.1472984,44007.0,44005.0,0.05]
[1644267127960,0.1472984,44007.0,44006.0,0.0007363]
[1644267128191,0.4707754,44007.0,44006.0,0.0007363]
[1644267128991,0.4707754,44007.0,44005.0,0.05]
[1644267128992,0.1472984,44007.0,44005.0,0.05]
[1644267129591,0.3772984,44007.0,44005.0,0.05]
[1644267130996,0.323477,44006.0,44005.0,0.05]
[1644267131592,0.323477,44006.0,44004.0,0.05]
[1644267131865,0.2195874,44005.0,44004.0,0.05]
[1644267132465,0.072289,44005.0,44004.0,0.05]
[1644267132662,0.1472984,44005.0,44003.0,0.098]
[1644267133167,0.323477,44004.0,44003.0,0.098]
[1644267133766,0.51854027,44004.0,44003.0,0.098]
[1644267134765,0.51854027,44004.0,44003.0,0.148]
[1644267135365,0.51854027,44004.0,44003.0,0.098]
[1644267135594,0.51854027,44004.0,43989.0,0.0052]
[1644267135595,0.056836,44001.0,43989.0,0.0052]
[1644267135801,0.29249136,43993.0,43989.0,0.0052]
[1644267135991,0.29249136,43993.0,43990.0,0.00016585]
[1644267136190,0.71555728,43993.0,43990.0,0.00016585]
[1644267136394,0.71555728,43993.0,43991.0,0.0001]
[1644267136594,0.170557,43990.0,43968.0,0.002]
[1644267136795,0.056866,43984.0,43978.0,0.00016588]
[1644267136996,0.1472984,43979.0,43978.0,0.00016588]
[1644267137194,0.58208364,43978.0,43974.0,0.00016588]
[1644267137394,0.323477,43978.0,43974.0,0.05016588]
[1644267137594,0.323477,43978.0,43976.0,0.00073379]
[1644267137795,0.323477,43978.0,43977.0,0.0514212]
[1644267138196,0.323477,43978.0,43977.0,0.0014212]
[1644267138398,0.32207874,43978.0,43977.0,0.0014212]
[1644267138696,0.32207874,43978.0,43973.0,0.01309368]
[1644267138697,0.072289,43976.0,43973.0,0.01309368]
[1644267138894,0.072289,43976.0,43975.0,0.0007338]
[1644267139095,0.2195874,43976.0,43975.0,0.0007338]
[1644267139743,0.4495874,43976.0,43975.0,0.0007338]
[1644267139943,0.4495874,43976.0,43973.0,0.01377848]
[1644267140144,0.322032,43975.0,43973.0,0.01377848]
[1644267140845,0.072289,43974.0,43973.0,0.01377848]
[1644267141049,0.072289,43974.0,43973.0,0.0113696]
[1644267141646,0.122289,43974.0,43973.0,6.96e-05]
[1644267142243,0.122289,43974.0,43971.0,0.00013429]
[1644267142444,0.1972984,43972.0,43971.0,0.00064178]
[1644267142644,0.2695874,43972.0,43971.0,0.00064178]
[1644267142845,0.3195874,43972.0,43971.0,0.00064178]
[1644267143300,0.4195874,43972.0,43971.0,0.00064178]
[1644267143499,0.4195874,43972.0,43971.0,0.00013429]
[1644267143898,0.4613874,43972.0,43971.0,0.00013429]
[1644267144100,0.3613874,43972.0,43971.0,0.00013429]
[1644267144298,0.3563874,43972.0,43971.0,0.00013429]
[1644267144499,0.3563874,43972.0,43963.0,0.00203036]
[1644267144701,0.3563874,43972.0,43950.0,0.00035808]
[1644267144702,0.05,43966.0,43950.0,0.00035808]
[1644267144901,0.0918,43966.0,43950.0,0.00035808]
[1644267145099,0.0918,43966.0,43954.0,0.21597448]
[1644267145500,0.0918,43966.0,43956.0,0.20507546]
[1644267145704,0.072289,43967.0,43956.0,0.20507546]
[1644267145901,0.33274906,43975.0,43956.0,0.20507546]
[1644267145902,0.1422984,43968.0,43956.0,0.20507546]
[1644267146207,0.1422984,43968.0,43954.0,0.21597448]
[1644267146401,0.1422984,43968.0,43954.0,0.55448151]
[1644267146602,0.1422984,43968.0,43950.0,0.00035808]
[1644267146603,1.45,43966.0,43950.0,0.00035808]
[1644267146853,0.05,43962.0,43950.0,0.00035808]
[1644267147057,0.120542,43962.0,43950.0,0.00035808]
[1644267147247,0.120542,43962.0,43961.0,0.02393409]
[1644267147450,2.00989764,43961.0,43955.0,1.0029368]
[1644267147649,0.1922984,43956.0,43955.0,0.0045368]
[1644267147852,0.2546404,43956.0,43955.0,0.0045368]
[1644267148251,0.2546404,43956.0,43955.0,0.0016]
[1644267148652,0.323779,43954.0,43930.0,1.3475]
[1644267148859,0.323779,43954.0,43927.0,0.1203]
[1644267148860,0.1422984,43940.0,43939.0,0.00083612]
[1644267149051,0.4660774,43940.0,43939.0,0.00083612]
[1644267149250,0.54995582,43940.0,43939.0,0.00083612]
[1644267149454,0.54995582,43940.0,43931.0,0.0163231]
[1644267149455,0.75,43939.0,43931.0,0.0163231]
[1644267149651,0.13484052,43936.0,43934.0,0.26905043]
[1644267149854,0.13484052,43937.0,43934.0,0.26905043]
[1644267150052,0.056909,43949.0,43934.0,0.26905043]
[1644267150053,0.323779,43946.0,43934.0,0.26905043]
[1644267150253,0.3418,43945.0,43934.0,0.26905043]
[1644267150453,0.13484052,43941.0,43934.0,0.26905043]
[1644267150698,0.8022,43957.0,43935.0,0.3]
[1644267150699,0.0205206,43946.0,43935.0,0.3]
[1644267150902,0.0205206,43946.0,43937.0,0.27730491]
[1644267151106,0.23,43941.0,43938.0,0.3]
[1644267151299,0.23,43941.0,43938.0,0.323779]
[1644267151504,0.23,43941.0,43939.0,0.00586884]
[1644267151701,0.23,43941.0,43937.0,0.27730491]
[1644267152101,0.23,43941.0,43938.0,0.00073436]
[1644267152502,0.36484052,43941.0,43938.0,0.00073436]
[1644267152701,0.23,43941.0,43938.0,0.00073436]
[1644267153099,0.23,43941.0,43934.0,0.26905043]
[1644267153301,0.23,43941.0,43937.0,0.00073437]
[1644267154341,0.23,43941.0,43935.0,0.0001652]
[1644267154542,0.23,43941.0,43937.0,0.00073437]
[1644267154742,0.24993358,43941.0,43937.0,0.00073437]
[1644267155543,0.24993358,43941.0,43935.0,0.0001652]
[1644267155744,0.24993358,43941.0,43934.0,0.26905043]
[1644267156951,0.24993358,43941.0,43935.0,0.00073385]
[1644267157151,0.24993358,43941.0,43936.0,0.323779]
[1644267157352,0.24993358,43941.0,43936.0,0.4239442]
[1644267157552,0.23,43941.0,43936.0,0.3657442]
[1644267157751,0.23,43941.0,43937.0,0.323779]
[1644267157952,0.23,43941.0,43937.0,0.0001652]
[1644267158198,0.23,43941.0,43936.0,0.00062058]
[1644267158399,0.23,43941.0,43936.0,0.00045538]
[1644267158694,0.23,43941.0,43934.0,0.35967101]
[1644267158894,0.24943708,43941.0,43935.0,0.323779]
[1644267159301,0.2823701,43965.0,43935.0,0.323779]
[1644267159302,0.113769,43964.0,43938.0,0.373779]
[1644267159499,0.13484052,43965.0,43953.0,0.23350882]
[1644267159500,0.19433734,43963.0,43953.0,0.23350882]
[1644267159695,0.07997257,43954.0,43952.0,0.0418]
[1644267159895,0.07997257,43954.0,43947.0,0.0418]
[1644267160094,0.22686078,43952.0,43947.0,0.0418]
[1644267160296,0.07997257,43954.0,43947.0,0.0418]
[1644267160495,0.13484052,43961.0,43947.0,0.0418]
[1644267160696,0.02098028,43952.0,43948.0,0.25471522]
[1644267162140,0.02098028,43952.0,43948.0,0.5392437]
[1644267162341,0.02098028,43952.0,43948.0,0.25471522]
[1644267162544,0.25098028,43952.0,43948.0,0.25471522]
[1644267162944,0.23073364,43952.0,43948.0,0.25471522]
[1644267163642,0.00073364,43952.0,43948.0,0.25471522]
[1644267163842,0.3555365,43956.0,43948.0,0.25471522]
[1644267164344,0.00073364,43952.0,43948.0,0.25471522]
[1644267164548,0.00073364,43952.0,43949.0,0.323779]
[1644267164743,0.00073364,43952.0,43949.0,0.0418]
[1644267165144,0.17380029,43956.0,43949.0,0.0418]
[1644267165344,0.00073363,43953.0,43949.0,0.0418]
[1644267165608,0.0822339,43952.0,43949.0,0.0418]
[1644267165799,0.00073363,43953.0,43949.0,0.0418]
[1644267166197,0.25176265,43955.0,43949.0,0.0418]
[1644267166497,0.00073362,43953.0,43949.0,0.0418]
[1644267166697,0.08591235,43951.0,43949.0,0.0418]
[1644267167405,0.35,43950.0,43933.0,0.7588]
[1644267167605,0.18484052,43940.0,43934.0,0.00073394]
[1644267168001,0.1168,43949.0,43934.0,0.00073394]
[1644267168204,0.06777794,43938.0,43934.0,0.00073394]
[1644267168404,0.2168,43949.0,43934.0,0.00073394]
[1644267168601,0.13484052,43942.0,43930.0,0.25781937]
[1644267168803,0.13484052,43942.0,43934.0,0.00073387]
[1644267169747,0.39625432,43941.0,43934.0,0.00073387]
[1644267170044,0.25976808,43937.0,43934.0,0.00073388]
[1644267170244,0.323779,43936.0,43934.0,0.00073388]
[1644267171044,0.323779,43936.0,43930.0,0.25781937]
[1644267171245,0.18484052,43937.0,43933.0,0.00073388]
[1644267172251,0.18484052,43937.0,43930.0,0.25781937]
[1644267172448,0.18484052,43937.0,43933.0,0.00073388]
[1644267172648,0.02043967,43938.0,43933.0,0.00073388]
[1644267172848,0.20443387,43937.0,43933.0,0.00073388]
[1644267173295,0.323779,43936.0,43933.0,0.00073388]
[1644267173498,0.323779,43936.0,43930.0,0.25781937]
[1644267173796,0.05,43942.0,43933.0,0.00073388]
[1644267173999,0.156908,43946.0,43933.0,0.00073388]
[1644267174000,0.05,43946.0,43933.0,0.00073388]
[1644267174598,0.05,43948.0,43932.0,0.00016179]
[1644267174802,0.05,43948.0,43941.0,0.23169081]
[1644267174803,0.01875556,43946.0,43941.0,0.23169081]
[1644267174998,3.76830919,43937.0,43934.0,0.00073389]
[1644267175397,3.76830919,43937.0,43934.0,0.00089568]
[1644267175598,3.76830919,43937.0,43934.0,0.00073389]
[1644267175797,3.75560919,43937.0,43934.0,0.00073389]
[1644267175998,2.76940919,43937.0,43935.0,0.28264407]
[1644267176198,2.76940919,43937.0,43936.0,0.0418]
[1644267177247,3.09318819,43937.0,43936.0,0.0418]
[1644267179446,3.09318819,43937.0,43936.0,0.0368]
[1644267181496,3.09058445,43937.0,43936.0,0.0368]
[1644267185445,3.09058445,43937.0,43927.0,0.003]
[1644267185446,1.35,43936.0,43927.0,0.003]
[1644267185652,1.35,43936.0,43924.0,0.21378]
[1644267185653,0.06883705,43925.0,43924.0,0.08743]
[1644267185850,1.373779,43924.0,43920.0,0.1]
[1644267186049,0.6,43920.0,43917.0,0.001]
[1644267186249,0.07782575,43915.0,43904.0,0.00015176]
[1644267186547,0.28770997,43912.0,43904.0,0.00015176]
[1644267186746,0.28770997,43912.0,43901.0,0.00265528]
[1644267187149,0.34464697,43912.0,43901.0,0.00265528]
[1644267187348,0.34464697,43912.0,43900.0,0.99126232]
[1644267187753,0.34134531,43912.0,43900.0,0.99126232]
[1644267187948,0.10363534,43912.0,43900.0,0.99126232]
[1644267188198,0.02140799,43915.0,43903.0,0.31262458]
[1644267188598,0.05,43911.0,43903.0,0.31262458]
[1644267188798,0.02140799,43915.0,43903.0,0.31262458]
[1644267188996,0.05,43911.0,43903.0,0.31262458]
[1644267189196,0.04898302,43911.0,43903.0,0.31262458]
[1644267189396,0.21063586,43914.0,43907.0,0.00073345]
[1644267189596,0.323779,43913.0,43907.0,0.00073345]
[1644267189998,0.25986751,43911.0,43907.0,0.00073345]
[1644267190199,0.25986751,43911.0,43907.0,0.00134049]
[1644267190505,0.07965536,43909.0,43907.0,0.00134049]
[1644267190702,0.37276202,43908.0,43907.0,0.00134049]
[1644267190898,0.47276202,43908.0,43907.0,0.00134049]
[1644267191496,0.47276202,43908.0,43907.0,0.00060704]
[1644267192556,1.35,43907.0,43900.0,0.90006196]
[1644267192758,1.35,43907.0,43896.0,0.0009924]
[1644267192759,0.45529788,43901.0,43896.0,0.0009924]
[1644267192957,0.25436554,43898.0,43896.0,0.0009924]
[1644267193160,0.13484052,43892.0,43890.0,0.00031808]
[1644267193366,0.18382354,43891.0,43889.0,0.01217236]
[1644267193557,0.73066775,43891.0,43889.0,0.01217236]
[1644267193754,0.93066775,43891.0,43889.0,0.01217236]
[1644267193957,0.73066775,43891.0,43889.0,0.01217236]
[1644267194158,0.33022759,43891.0,43889.0,0.01217236]
[1644267194354,0.09448302,43891.0,43889.0,0.01217236]
[1644267194555,0.16764276,43891.0,43889.0,0.01217236]
[1644267195255,0.30642758,43891.0,43889.0,0.01217236]
[1644267195458,0.35642758,43891.0,43889.0,0.01217236]
[1644267195706,0.44453889,43891.0,43889.0,0.01217236]
[1644267195900,0.30642758,43891.0,43889.0,0.01217236]
[1644267196104,0.48013222,43891.0,43889.0,0.01217236]
[1644267196300,0.53013222,43891.0,43889.0,0.01217236]
[1644267196500,0.38013222,43891.0,43889.0,0.01217236]
[1644267196700,0.33463222,43891.0,43889.0,0.01217236]
[1644267196898,0.43463222,43891.0,43889.0,0.01217236]
[1644267197100,0.75711222,43891.0,43889.0,0.01217236]
[1644267197303,0.80711222,43891.0,43889.0,0.01217236]
[1644267197498,0.89816991,43891.0,43889.0,0.01217236]
[1644267197798,0.80711222,43891.0,43889.0,0.01217236]
[1644267198198,0.91194323,43891.0,43889.0,0.01217236]
[1644267198402,0.80711222,43891.0,43889.0,0.01217236]
[1644267200248,0.80711222,43891.0,43890.0,0.02212277]
[1644267201851,0.96161222,43891.0,43890.0,0.02212277]
[1644267202247,1.46161222,43891.0,43890.0,0.02212277]
[1644267202447,1.30361222,43891.0,43890.0,0.02212277]
[1644267202648,1.32628222,43891.0,43890.0,0.02212277]
[1644267202848,1.52628222,43891.0,43890.0,0.02212277]
[1644267203300,1.30361222,43891.0,43890.0,0.02212277]
[1644267203505,1.10361222,43891.0,43890.0,0.02212277]
[1644267204304,0.77596302,43891.0,43890.0,0.28835668]
[1644267204503,0.67,43891.0,43890.0,0.28835668]
[1644267204706,0.16647727,43891.0,43890.0,0.58835668]
[1644267205102,0.16647727,43891.0,43890.0,0.28835668]
[1644267205302,0.16647727,43891.0,43890.0,0.77310808]
[1644267205503,0.16647727,43891.0,43890.0,0.02212277]
[1644267206103,0.16090909,43891.0,43890.0,0.02212277]
[1644267206502,0.41476746,43891.0,43890.0,0.02212277]
[1644267206704,0.56375048,43891.0,43890.0,0.02212277]
[1644267206952,0.45676746,43891.0,43890.0,0.02212277]
[1644267207150,0.70575048,43891.0,43890.0,0.02212277]
[1644267207753,0.66375048,43891.0,43890.0,0.02212277]
[1644267208855,0.50284139,43891.0,43890.0,0.02212277]
[1644267209954,0.54484139,43891.0,43890.0,0.02212277]
[1644267210998,0.61608214,43891.0,43890.0,0.02212277]
[1644267212298,0.86265432,43891.0,43890.0,0.02212277]
[1644267212497,0.83765432,43891.0,43890.0,0.02212277]
[1644267212700,1.67271924,43891.0,43890.0,0.02212277]
[1644267213299,0.59695098,43891.0,43890.0,0.02212277]
[1644267213503,0.59108214,43891.0,43890.0,0.02212277]
[1644267213905,1.42027822,43891.0,43890.0,0.02212277]
[1644267214100,0.59108214,43891.0,43890.0,0.02212277]
[1644267214363,0.80144144,43891.0,43890.0,0.02212277]
[1644267214561,1.63063752,43891.0,43890.0,0.02212277]
[1644267214763,0.80144144,43891.0,43890.0,0.02212277]
[1644267215162,0.82411144,43891.0,43890.0,0.02212277]
[1644267215963,1.17837133,43891.0,43890.0,0.02212277]
[1644267216163,2.05917636,43891.0,43890.0,0.02212277]
[1644267216364,0.87998028,43891.0,43890.0,0.02212277]
[1644267216764,0.92998028,43891.0,43890.0,0.02212277]
[1644267217163,1.75917636,43891.0,43890.0,0.02212277]
[1644267217365,3.97500405,43891.0,43890.0,0.02212277]
[1644267217566,1.75917636,43891.0,43890.0,0.02212277]
[1644267218098,0.87998028,43891.0,43890.0,0.02212277]